{"text_format":"1","workbook":"xlsx","n_sheets":1,"sheets":["Külföldi kiutazási engedély"],"not_rendered":{"charts":0,"images":4,"macros":1,"external_links":2,"defined_names":4,"comments":1,"pivot_tables":0},"unopened":[],"bounds":{"document_bytes":16777216,"sheet_cells":100000,"rows_first":2000,"rows_last":500,"rows_between":2000,"halvings":0,"cell_chars":16384,"cell_head_chars":4096},"cells_cut":0,"cells_raw":0,"read":"whole","date_system":"1900"}

{"sheet":"Külföldi kiutazási engedély","index":0,"n_rows":53,"n_cols":101,"rows_kept":53,"cut":false,"hidden":false,"merged":[[6,34,7,43],[6,44,7,54],[40,0,40,12],[41,25,41,54],[39,0,39,7],[39,9,39,12],[39,14,39,54],[19,0,19,8],[19,9,19,17],[19,18,19,23],[19,24,19,27],[19,28,19,37],[34,43,34,48],[34,49,34,54],[33,36,33,42],[33,43,33,48],[33,49,33,54],[34,0,34,5],[34,6,34,11],[34,12,34,17],[34,18,34,23],[34,24,34,29],[34,30,34,35],[34,36,34,42],[33,0,33,5],[33,6,33,11],[6,0,6,12],[6,13,6,33],[8,0,8,12],[8,13,8,33],[9,0,9,12],[9,13,9,33],[10,0,11,12],[10,13,10,33],[11,13,11,33],[7,0,7,12],[7,13,7,33],[33,12,33,17],[33,18,33,23],[33,24,33,29],[33,30,33,35],[32,0,32,5],[32,6,32,11],[32,12,32,17],[32,18,32,23],[32,24,32,29],[32,30,32,35],[28,0,28,5],[32,36,32,42],[32,43,32,48],[32,49,32,54],[31,0,31,5],[31,6,31,11],[31,12,31,17],[31,18,31,23],[31,24,31,29],[31,30,31,35],[31,36,31,42],[31,43,31,48],[31,49,31,54],[25,24,25,29],[25,30,25,35],[26,43,26,48],[26,49,26,54],[29,36,29,42],[29,43,29,48],[29,49,29,54],[30,0,30,5],[30,6,30,11],[30,12,30,17],[30,18,30,23],[30,24,30,29],[30,30,30,35],[30,36,30,42],[29,0,29,5],[29,6,29,11],[29,12,29,17],[29,18,29,23],[29,24,29,29],[29,30,29,35],[30,43,30,48],[30,49,30,54],[27,6,27,11],[27,12,27,17],[27,18,27,23],[27,24,27,29],[27,30,27,35],[27,36,27,42],[27,43,27,48],[27,49,27,54],[28,6,28,11],[28,12,28,17],[28,18,28,23],[28,24,28,29],[28,30,28,35],[28,36,28,42],[28,43,28,48],[28,49,28,54],[23,0,23,5],[23,6,23,11],[23,12,23,17],[23,18,23,23],[23,24,23,29],[23,30,23,35],[23,36,23,42],[23,43,23,48],[23,49,23,54],[21,0,21,5],[21,6,21,11],[21,12,21,17],[21,18,21,23],[21,24,21,29],[21,30,21,35],[12,0,13,12],[12,13,12,33],[13,13,13,33],[14,0,14,12],[14,13,14,33],[15,0,15,12],[16,0,16,12],[16,13,16,33],[17,0,17,12],[17,13,17,33],[18,0,18,12],[18,13,18,33],[15,13,15,15],[15,17,15,21],[15,23,15,27],[15,29,15,33],[18,34,18,54],[52,8,52,17],[52,31,52,41],[0,0,0,54],[1,0,1,54],[2,0,2,13],[2,14,2,31],[2,32,2,47],[2,48,2,54],[37,31,37,48],[35,0,35,54],[8,34,9,43],[8,44,9,54],[4,0,4,54],[14,34,15,43],[14,44,15,54],[13,34,13,43],[13,44,13,54],[37,0,37,11],[43,5,43,14],[43,35,43,44],[41,0,41,11],[43,0,43,4],[19,38,19,54],[44,15,44,24],[45,5,45,14],[46,5,46,14],[45,15,45,24],[46,15,46,24],[43,25,43,34],[44,25,44,34],[24,0,24,5],[24,6,24,11],[24,12,24,17],[24,18,24,23],[44,0,44,4],[45,0,45,4],[46,0,46,4],[24,24,24,29],[24,30,24,35],[26,0,26,5],[26,6,26,11],[26,12,26,17],[26,18,26,23],[26,24,26,29],[26,30,26,35],[25,0,25,5],[25,6,25,11],[27,0,27,5],[22,24,22,29],[22,30,22,35],[22,36,22,42],[22,43,22,48],[43,45,43,54],[10,34,11,43],[10,44,11,54],[43,15,43,24],[12,44,12,54],[16,34,17,43],[16,44,17,54],[21,36,21,42],[21,43,21,48],[21,49,21,54],[22,49,22,54],[24,36,24,42],[24,43,24,48],[24,49,24,54],[25,36,25,42],[25,43,25,48],[25,49,25,54],[26,36,26,42],[25,12,25,17],[25,18,25,23],[3,0,3,24],[8,59,9,59],[10,59,11,59],[48,0,48,54],[50,8,50,18],[51,8,51,17],[50,31,50,41],[51,31,51,41],[44,35,44,44],[44,45,44,54],[45,25,45,34],[45,35,45,44],[45,45,45,54],[46,25,46,34],[46,35,46,44],[46,45,46,54],[47,12,47,13],[47,36,47,37],[44,5,44,14],[12,34,12,43],[22,0,22,5],[22,6,22,11],[22,12,22,17],[22,18,22,23]]}
["Eszterházy Károly Egyetem - Külföldi kiutazási engedély kérelem",null,null,null,null,null,null,null,null,null,null,null,null,null,null,null,null,null,null,null,null,null,null,null,null,null,null,null,null,null,null,null,null,null,null,null,null,null,null,null,null,null,null,null,null,null,null,null,null,null,null,null,null,null,null,null,null,null,null,null,null,null,null,null,null,null,null,null,null,null,null,null,null,null,null,null,null,null,null,null,null,null,null,null,null,null,null,null,null,null,null,null,null,null,null,null,null,null,null,null,"USD Amerikai Dollár "]
["Dr. Liptai Kálmán rektor / Lengyel Péter kancellár részére",null,null,null,null,null,null,null,null,null,null,null,null,null,null,null,null,null,null,null,null,null,null,null,null,null,null,null,null,null,null,null,null,null,null,null,null,null,null,null,null,null,null,null,null,null,null,null,null,null,null,null,null,null,null,null,null,null,null,null,null,null,null,null,null,null,null,null,null,null,null,null,null,null,null,null,null,null,null,null,null,null,null,null,null,null,null,null,null,null,null,null,null,null,null,null,null,"konferencia",null,null,"GBP Angol Font "]
["Egység/Tanszék iktatószáma:",null,null,null,null,null,null,null,null,null,null,null,null,null,null,null,null,null,null,null,null,null,null,null,null,null,null,null,null,null,null,null,"Kiutazási engedélykérés dátuma:",null,null,null,null,null,null,null,null,null,null,null,null,null,null,null,{"$f":"TODAY()","v":"2017-06-23"},null,null,null,null,null,null,null,null,null,null,null,null,null,null,null,null,null,null,null,null,null,null,null,null,null,null,null,null,null,null,null,null,null,null,null,null,null,null,null,null,null,null,null,null,null,null,null,null,"tanulmányút",null,null,"AUD Ausztrál Dollár "]
["Tisztelt Rektor Úr! / Tisztelt Kancellár Úr! ",null,null,null,null,null,null,null,null,null,null,null,null,null,null,null,null,null,null,null,null,null,null,null,null,null,null,null,null,null,null,null,null,null,null,null,null,null,null,null,null,null,null,null,null,null,null,null,null,null,null,null,null,null,null,null,null,null,null,null,null,null,null,null,null,null,null,null,null,null,null,null,null,null,null,null,null,null,null,null,null,null,null,null,null,null,null,null,null,null,null,null,null,null,null,null,null,"együttműködés ",null,null,"BGN Bolgár Leva "]
["Az alábbiakban részletezett, tervezett külföldi kiutazást engedélyezni szíveskedjen.",null,null,null,null,null,null,null,null,null,null,null,null,null,null,null,null,null,null,null,null,null,null,null,null,null,null,null,null,null,null,null,null,null,null,null,null,null,null,null,null,null,null,null,null,null,null,null,null,null,null,null,null,null,null,null,null,null,null,null,null,null,null,null,null,null,null,null,null,null,null,null,null,null,null,null,null,null,null,null,null,null,null,null,null,null,null,null,null,null,null,null,null,null,null,null,null,"előkészítő látogatás",null,null,"BRL Brazil Reál "]
[null,null,null,null,null,null,null,null,null,null,null,null,null,null,null,null,null,null,null,null,null,null,null,null,null,null,null,null,null,null,null,null,null,null,null,null,null,null,null,null,null,null,null,null,null,null,null,null,null,null,null,null,null,null,null,null,null,null,null,null,null,null,null,null,null,null,null,null,null,null,null,null,null,null,null,null,null,null,null,null,null,null,null,null,null,null,null,null,null,null,null,null,null,null,null,null,null,"meghívás",null,null,"CZK Cseh Korona "]
["KIUTAZÓ NEVE:",null,null,null,null,null,null,null,null,null,null,null,null,null,null,null,null,null,null,null,null,null,null,null,null,null,null,null,null,null,null,null,null,null,"Kiutazás célja (rendezvény megnev.):",null,null,null,null,null,null,null,null,null,null,null,null,null,null,null,null,null,null,null,null,null,null,null,null,null,null,null,null,null,null,null,null,null,null,null,null,null,null,null,null,null,null,null,null,null,null,null,null,null,null,null,null,null,null,null,null,null,null,null,null,null,null,"kiállítás",null,null,"DKK Dán Korona "]
["Elérhetősége (e-mail, telefon):"]
["Kiutazó szervezeti egysége:",null,null,null,null,null,null,null,null,null,null,null,null,null,null,null,null,null,null,null,null,null,null,null,null,null,null,null,null,null,null,null,null,null,"Kiutazás időpontja\n(dátum, idő):",null,null,null,null,null,null,null,null,null,null,null,null,null,null,null,null,null,null,null,null,null,null,null,null,{"$f":"24-HOUR(AS9)","v":24},null,null,null,null,null,null,null,null,null,null,null,null,null,null,null,null,null,null,null,null,null,null,null,null,null,null,null,null,null,null,null,null,null,null,null,null,null,null,null,null,"ZAR Dél-Afrikai Rand "]
["Kiutazó jogviszonya/beosztása:",null,null,null,null,null,null,null,null,null,null,null,null,null,null,null,null,null,null,null,null,null,null,null,null,null,null,null,null,null,null,null,null,null,null,null,null,null,null,null,null,null,null,null,null,null,null,null,null,null,null,null,null,null,null,null,null,null,null,null,"ó",null,null,null,null,null,null,null,null,null,null,null,null,null,null,null,null,null,null,null,null,null,null,null,null,null,null,null,null,null,null,null,null,null,null,null,null,null,null,null,"KRW Dél-koreai Won "]
["Szem.ig.szám / útlevélszám: \nOkmány érvényessége:",null,null,null,null,null,null,null,null,null,null,null,null,null,null,null,null,null,null,null,null,null,null,null,null,null,null,null,null,null,null,null,null,null,"Hazaérkezés időpontja (dátum, idő):",null,null,null,null,null,null,null,null,null,null,null,null,null,null,null,null,null,null,null,null,null,null,null,null,{"$f":"HOUR(AS11)","v":0},null,null,null,null,null,null,null,null,null,null,null,null,null,null,null,null,null,null,null,null,null,null,null,null,null,null,null,null,null,null,null,null,null,null,null,null,null,null,null,null,"EUR Euro "]
[null,null,null,null,null,null,null,null,null,null,null,null,null,null,null,null,null,null,null,null,null,null,null,null,null,null,null,null,null,null,null,null,null,null,null,null,null,null,null,null,null,null,null,null,null,null,null,null,null,null,null,null,null,null,null,null,null,null,null,null,"ó",null,null,null,null,null,null,null,null,null,null,null,null,null,null,null,null,null,null,null,null,null,null,null,null,null,null,null,null,null,null,null,null,null,null,null,null,null,null,null,"PHP Fülöp-Szigeteki Peso "]
["Születési helye:\nSzületési ideje: ",null,null,null,null,null,null,null,null,null,null,null,null,null,null,null,null,null,null,null,null,null,null,null,null,null,null,null,null,null,null,null,null,null,"Úticél ország:",null,null,null,null,null,null,null,null,null,null,null,null,null,null,null,null,null,null,null,null,null,null,null,null,{"$f":"DAYS360(AS9,AS11,TRUE)-1","v":-1},"n",null,null,null,null,null,null,null,null,null,null,null,null,null,null,null,null,null,null,null,null,null,null,null,null,null,null,null,null,null,null,null,null,null,null,null,null,null,null,null,"HKD Hongkongi Dollár "]
[null,null,null,null,null,null,null,null,null,null,null,null,null,null,null,null,null,null,null,null,null,null,null,null,null,null,null,null,null,null,null,null,null,null,"Úticél város:",null,null,null,null,null,null,null,null,null,null,null,null,null,null,null,null,null,null,null,null,null,null,null,null,{"$f":"BH13*24","v":-24},"ó",null,null,null,null,null,null,null,null,null,null,null,null,null,null,null,null,null,null,null,null,null,null,null,null,null,null,null,null,null,null,null,null,null,null,null,null,null,null,null,"HRK Horvát Kuna "]
["Forint/Deviza-számla adatok:  (számlatulajdonos neve) ",null,null,null,null,null,null,null,null,null,null,null,null,null,null,null,null,null,null,null,null,null,null,null,null,null,null,null,null,null,null,null,null,null,"Fogadó intézmény neve:",null,null,null,null,null,null,null,null,null,null,null,null,null,null,null,null,null,null,null,null,null,null,null,null,{"$f":"BH9+BH11+BH14","v":0},"ó",null,"Össz",null,null,null,null,null,null,null,null,null,null,null,null,null,null,null,null,null,null,null,null,null,null,null,null,null,null,null,null,null,null,null,null,null,null,null,null,null,"INR Indiai Rupía "]
["Forint/Deviza-számla adatok:  (bankszámlaszám) ",null,null,null,null,null,null,null,null,null,null,null,null,null,null,null,"-",null,null,null,null,null,"-",null,null,null,null,null,"-",null,null,null,null,null,null,null,null,null,null,null,null,null,null,null,null,null,null,null,null,null,null,null,null,null,null,null,null,null,null,{"$f":"ROUNDDOWN((BH15/24),0)","v":0},"nap",null,null,null,null,null,null,null,null,null,null,null,null,null,null,null,null,null,null,null,null,null,null,null,null,null,null,null,null,null,null,null,null,null,null,null,null,null,null,null,"IDR Indonéz Rupía "]
["Számlavezető bank neve, címe:",null,null,null,null,null,null,null,null,null,null,null,null,null,null,null,null,null,null,null,null,null,null,null,null,null,null,null,null,null,null,null,null,null,"Fogadó intézmény szervezeti egysége:",null,null,null,null,null,null,null,null,null,null,null,null,null,null,null,null,null,null,null,null,null,null,null,null,{"$f":"MOD(BH15,24)","v":0},"ó",null,null,null,null,null,null,null,null,null,null,null,null,null,null,null,null,null,null,null,null,null,null,null,null,null,null,null,null,null,null,null,null,null,null,null,null,null,null,null,"ISK Izlandi Korona "]
["SWIFT-kódja:",null,null,null,null,null,null,null,null,null,null,null,null,null,null,null,null,null,null,null,null,null,null,null,null,null,null,null,null,null,null,null,null,null,null,null,null,null,null,null,null,null,null,null,null,null,null,null,null,null,null,null,null,null,null,null,null,null,null,null,null,null,null,null,null,null,null,null,null,null,null,null,null,null,null,null,null,null,null,null,null,null,null,null,null,null,null,null,null,null,null,null,null,null,null,null,null,null,null,null,"ILS Izraeli Sékel "]
["Bankszámla devizaneme:",null,null,null,null,null,null,null,null,null,null,null,null,null,null,null,null,null,null,null,null,null,null,null,null,null,null,null,null,null,null,null,null,null,null,null,null,null,null,null,null,null,null,null,null,null,null,null,null,null,null,null,null,null,null,null,null,null,null,null,null,null,null,null,null,null,null,null,null,null,null,null,null,null,null,null,null,null,null,null,null,null,null,null,null,null,null,null,null,null,null,null,null,null,null,null,null,null,null,null,"JPY Japán Yen "]
["Ktg.típus devizaneme:",null,null,null,null,null,null,null,null,null,null,null,null,null,null,null,null,null,"Árfolyam *:",null,null,null,null,null,null,null,null,null,"*MNB deviza középárfolyam:",null,null,null,null,null,null,null,null,null,"http://napiarfolyam.hu/%C3%A1rfolyam/MNB/",null,null,null,null,null,null,null,null,null,null,null,null,null,null,null,null,null,null,null,null,null,null,null,null,null,null,null,null,null,null,null,null,null,null,null,null,null,null,null,null,null,null,null,null,null,null,null,null,null,null,null,null,null,null,null,null,null,null,null,null,null,"CAD Kanadai Dollár "]
[null,null,null,null,null,null,null,null,null,null,null,null,null,null,null,null,null,null,null,null,null,null,null,null,null,null,null,null,null,null,null,null,null,null,null,null,null,null,null,null,null,null,null,null,null,null,null,null,null,null,null,null,null,null,null,null,null,null,null,null,null,null,null,null,null,null,null,null,null,null,null,null,null,null,null,null,null,null,null,null,null,null,null,null,null,null,null,null,null,null,null,null,null,null,null,null,null,null,null,null,"CNY Kínai Jüan "]
["Költségtípus",null,null,null,null,null,"Összesen\nÖsszeg (Ft)",null,null,null,null,null,"Összeg (deviza)",null,null,null,null,null,"Központi külügyi támogatás témaszám:\nKMK01RKNK",null,null,null,null,null,"Tanszéki/Kari támogatás témaszám:\n",null,null,null,null,null,"Pályázati forrás (OTKA, EFOP, GINOP, NKA, NTP, stb.) azonosító, témaszám:\n",null,null,null,null,null,"Intézményen kívüli forrás megnevezése (pl. külső ösztöndíj,  meghívó/ fogadó intézmény támogatása, önerő stb.)",null,null,null,null,null,null,"Előre utalandó összegek (Ft)",null,null,null,null,null,"Utalás határideje (dátum)",null,null,null,null,null,null,null,null,null,null,null,null,null,null,null,null,null,null,null,null,null,null,null,null,null,null,null,null,null,null,null,null,null,null,null,null,null,null,null,null,null,null,null,null,null,null,null,null,null,null,"PLN Lengyel Zloty "]
["Regisztrációs díj",null,null,null,null,null,{"$f":"SUM(S23:AQ23)","v":0},null,null,null,null,null,{"$f":"IF($Y$20>0,G23/$Y$20,)","v":0},null,null,null,null,null,null,null,null,null,null,null,null,null,null,null,null,null,null,null,null,null,null,null,null,null,null,null,null,null,null,null,null,null,null,null,null,null,null,null,null,null,null,null,null,null,null,null,null,null,null,null,null,null,null,null,null,null,null,null,null,null,null,null,null,null,null,null,null,null,null,null,null,null,null,null,null,null,null,null,null,null,null,null,null,null,null,null,"LTL Litván Litas "]
["Útiköltség",null,null,null,null,null,{"$f":"SUM(S24:AQ24)","v":0},null,null,null,null,null,{"$f":"IF($Y$20>0,G24/$Y$20,)","v":0},null,null,null,null,null,null,null,null,null,null,null,null,null,null,null,null,null,null,null,null,null,null,null,null,null,null,null,null,null,null,null,null,null,null,null,null,null,null,null,null,null,null,null,null,null,null,null,null,null,null,null,null,null,null,null,null,null,null,null,null,null,null,null,null,null,null,null,null,null,null,null,null,null,null,null,null,null,null,null,null,null,null,null,null,null,null,null,"HUF Magyar Forint"]
["Szállás",null,null,null,null,null,0,null,null,null,null,null,0,null,null,null,null,null,null,null,null,null,null,null,null,null,null,null,null,null,null,null,null,null,null,null,null,null,null,null,null,null,null,null,null,null,null,null,null,null,null,null,null,null,null,null,null,null,null,null,null,null,null,null,null,null,null,null,null,null,null,null,null,null,null,null,null,null,null,null,null,null,null,null,null,null,null,null,null,null,null,null,null,null,null,null,null,null,null,null,"MXN Mexikói Peso "]
["Biztosítás",null,null,null,null,null,0,null,null,null,null,null,0,null,null,null,null,null,null,null,null,null,null,null,null,null,null,null,null,null,null,null,null,null,null,null,null,null,null,null,null,null,null,null,null,null,null,null,null,null,null,null,null,null,null,null,null,null,null,null,null,null,null,null,null,null,null,null,null,null,null,null,null,null,null,null,null,null,null,null,null,null,null,null,null,null,null,null,null,null,null,null,null,null,null,null,null,null,null,null,"NOK Norvég Korona "]
["Egyéb (pl. vízum)",null,null,null,null,null,0,null,null,null,null,null,0,null,null,null,null,null,null,null,null,null,null,null,null,null,null,null,null,null,null,null,null,null,null,null,null,null,null,null,null,null,null,null,null,null,null,null,null,null,null,null,null,null,null,null,null,null,null,null,null,null,null,null,null,null,null,null,null,null,null,null,null,null,null,null,null,null,null,null,null,null,null,null,null,null,null,null,null,null,null,null,null,null,null,null,null,null,null,null,"RUB Orosz Rubel "]
["Belföldi reptéri transzfer",null,null,null,null,null,0,null,null,null,null,null,0,null,null,null,null,null,null,null,null,null,null,null,null,null,null,null,null,null,null,null,null,null,null,null,null,null,null,null,null,null,null,null,null,null,null,null,null,null,null,null,null,null,null,null,null,null,null,null,null,null,null,null,null,null,null,null,null,null,null,null,null,null,null,null,null,null,null,null,null,null,null,null,null,null,null,null,null,null,null,null,null,null,null,null,null,null,null,null,"RON Román Lej "]
["Külföldi helyi közlekedés",null,null,null,null,null,0,null,null,null,null,null,0,null,null,null,null,null,null,null,null,null,null,null,null,null,null,null,null,null,null,null,null,null,null,null,null,null,null,null,null,null,null,null,null,null,null,null,null,null,null,null,null,null,null,null,null,null,null,null,null,null,null,null,null,null,null,null,null,null,null,null,null,null,null,null,null,null,null,null,null,null,null,null,null,null,null,null,null,null,null,null,null,null,null,null,null,null,null,null,"CHF Svájci Frank "]
["Napidíj (50.-EUR/nap)*",null,null,null,null,null,{"$f":"ROUND(($Y$20)*IF($BH$15<4,0,IF($BH$15<=24,25,($BH$16*50+IF($BH$17>=8,50,0)))),0)","v":0},null,null,null,null,null,0,null,null,null,null,null,null,null,null,null,null,null,null,null,null,null,null,null,null,null,null,null,null,null,null,null,null,null,null,null,null,null,null,null,null,null,null,null,null,null,null,null,null,null,null,null,null,{"$f":"SUM(S30:AQ30)","v":0},null,null,null,null,null,null,null,null,null,null,null,null,null,null,null,null,null,null,null,null,null,null,null,null,null,null,null,null,null,null,null,null,null,null,null,null,null,null,null,null,"SEK Svéd Korona "]
["Járulék",null,null,null,null,null,{"$f":"ROUND($G$30*0.7*22%,0)","v":0},null,null,null,null,null,0,null,null,null,null,null,null,null,null,null,null,null,null,null,null,null,null,null,null,null,null,null,null,null,null,null,null,null,null,null,null,null,null,null,null,null,null,null,null,null,null,null,null,null,null,null,null,{"$f":"SUM(S31:AQ31)","v":0},null,null,null,null,null,null,null,null,null,null,null,null,null,null,null,null,null,null,null,null,null,null,null,null,null,null,null,null,null,null,null,null,null,null,null,null,null,null,null,null,"RSD Szerb Dinár "]
["Ösztöndíj (pl. Erasmus+)**",null,null,null,null,null,0,null,null,null,null,null,0,null,null,null,null,null,null,null,null,null,null,null,null,null,null,null,null,null,null,null,null,null,null,null,null,null,null,null,null,null,null,null,null,null,null,null,null,null,null,null,null,null,null,null,null,null,null,null,null,null,null,null,null,null,null,null,null,null,null,null,null,null,null,null,null,null,null,null,null,null,null,null,null,null,null,null,null,null,null,null,null,null,null,null,null,null,null,null,"SGD Szingapúri Dollár "]
[null,null,null,null,null,null,0,null,null,null,null,null,0,null,null,null,null,null,null,null,null,null,null,null,null,null,null,null,null,null,null,null,null,null,null,null,null,null,null,null,null,null,null,null,null,null,null,null,null,null,null,null,null,null,null,null,null,null,null,null,null,null,null,null,null,null,null,null,null,null,null,null,null,null,null,null,null,null,null,null,null,null,null,null,null,null,null,null,null,null,null,null,null,null,null,null,null,null,null,null,"THB Thai Baht "]
[null,null,null,null,null,null,0,null,null,null,null,null,0,null,null,null,null,null,null,null,null,null,null,null,null,null,null,null,null,null,null,null,null,null,null,null,null,null,null,null,null,null,null,null,null,null,null,null,null,null,null,null,null,null,null,null,null,null,null,null,null,null,null,null,null,null,null,null,null,null,null,null,null,null,null,null,null,null,null,null,null,null,null,null,null,null,null,null,null,null,null,null,null,null,null,null,null,null,null,null,"TRY Török Líra "]
["Összesen:",null,null,null,null,null,{"$f":"SUM(G23:L34)","v":0},null,null,null,null,null,{"$f":"SUM(M23:R34)","v":0},null,null,null,null,null,{"$f":"SUM(S23:X34)","v":0},null,null,null,null,null,{"$f":"SUM(Y23:AD34)","v":0},null,null,null,null,null,{"$f":"SUM(AE23:AJ34)","v":0},null,null,null,null,null,{"$f":"SUM(AK23:AQ34)","v":0},null,null,null,null,null,null,{"$f":"SUM(AR23:AW34)","v":0},null,null,null,null,null,null,null,null,null,null,null,null,null,null,null,null,null,null,null,null,null,null,null,null,null,null,null,null,null,null,null,null,null,null,null,null,null,null,null,null,null,null,null,null,null,null,null,null,null,null,null,null,null,null,null,null,"UAH Ukrán Hryvnia "]
["* Napidíjat csak a napi 8 órát meghaladó időtartamra lehet igényelni.\n** Erasmus+ ösztöndíj esetén csak az összeg és előre utalandó tételek cellái kitöltendőek!"]
[]
["Eger, 2017.",null,null,null,null,null,null,null,null,null,null,null,null,null,null,null,null,null,null,null,null,null,null,null,null,null,null,null,null,null,null,"kiutazó aláírása"]
[]
["Szolgálatmentességet",null,null,null,null,null,null,null,null,"biztosítok",null,null,null,null,"nem biztosítok kiutazó részére fenti időtartamra a hivatalos külföldi kiküldetés teljesítéséhez."]
["Kérem a megfelelőt X-el jelölni."]
["Eger, 2017.",null,null,null,null,null,null,null,null,null,null,null,null,null,null,null,null,null,null,null,null,null,null,null,null,"egységvezető neve, aláírása"]
[]
["Megnev.",null,null,null,null,"NKK osztályvezető\n(szakmai ellenjegyző)",null,null,null,null,null,null,null,null,null,"Kötelezettségvállaló\n(külügyi keret)",null,null,null,null,null,null,null,null,null,"Kötelezettségvállaló (tanszéki/kari tám.)",null,null,null,null,null,null,null,null,null,"Kötelezettségvállaló (pályázati forrás)",null,null,null,null,null,null,null,null,null,"Pénzügyi ellenjegyző"]
["Név",null,null,null,null,"Taylerné Tóth Katalin",null,null,null,null,null,null,null,null,null,"Dr. Liptai Kálmán"]
["Aláírás"]
["Dátum",null,null,null,null,"Eger, 2017.",null,null,null,null,null,null,null,null,null,"Eger, 2017.",null,null,null,null,null,null,null,null,null,null,null,null,null,null,null,null,null,null,null,null,null,null,null,null,null,null,null,null,null,"Eger, 2017."]
[]
["A fentiek alapján a hivatalos külföldi kiküldetést engedélyezem."]
[]
[null,null,null,null,null,null,null,null,"Dr. Liptai Kálmán",null,null,null,null,null,null,null,null,null,null,null,null,null,null,null,null,null,null,null,null,null,null,"Lengyel Péter"]
[null,null,null,null,null,null,null,null,"rektor",null,null,null,null,null,null,null,null,null,null,null,null,null,null,null,null,null,null,null,null,null,null,"kancellár"]
[null,null,null,null,null,null,null,null,"Eger, 2017.",null,null,null,null,null,null,null,null,null,null,null,null,null,null,null,null,null,null,null,null,null,null,"Eger, 2017."]